Cogmind - Beta 15 @@@ ROGUE MODE // 2025.08.08 @ 01:39:37 Player: Mogwok Wargfriend Result: Destroyed by D-53 Grenadier with Mini Grenade Launcher Performance ------------- Evolutions (0) 0 Regions Visited (2) 400 Robots Destroyed (32) 160 Value Destroyed (680) 680 Prototype IDs (0) 0 Alien Tech Used (0) 0 Bonus (0) 0 TOTAL SCORE: 1240 Bonus ------- None Cogmind --------- Core Integrity 0/250 Matter 300/300 Energy 125/125 System Corruption 0% Temperature Cool (0) Movement Rolling (115) Ox1 Location -10/Mines Parts ------- > --- POWER (1) -------- Light Ion Engine > --- PROPULSION (2) --- Compact Wheel > --- UTILITY (2) ------ Improved Heat Sink Large Storage Unit > --- WEAPON (2) ------- Small Laser Light Assault Rifle > --- INVENTORY (15) --- Ion Engine Light Ion Engine Aluminum Leg Aluminum Leg Large Storage Unit Small Battery (100) Large Matter Pod (150) Signal Interpreter Hacking Suite Light Assault Rifle Light Assault Rifle Bore Cannon Datajack Mining Laser Hammer Peak State ------------ > --- POWER ------------ Ion Engine > --- PROPULSION ------- Wheel Wheel > --- UTILITY ---------- Improved Heat Sink Small Storage Unit > --- WEAPON ----------- Light Assault Rifle Light Assault Rifle > --- INVENTORY -------- Ion Engine Aluminum Leg Aluminum Leg Wheel Hacking Suite Small Laser Light Cannon Mining Laser [Rating: 10] Favorites ----------- Power Ion Engine Engine Ion Engine Propulsion Wheel Wheel Wheel Utility Small Storage Unit Device Improved Heat Sink Storage Small Storage Unit Processor Transport Network Coupler Protection Weapon Shielding Weapon Light Assault Rifle Energy Gun Small Laser Ballistic Gun Light Assault Rifle Special Melee Weapon Datajack Build | -11 -10 -10 ------- Run | Yrd Mat Min Slots Evolved . | . . . Power . | . . . Propulsion . | . . . Utility . | . . . Weapon . | . . . Parts Attached 24 | 7 14 3 Power 5 | 1 3 1 Engine 5 | 1 3 1 Core . | . . . Reactor . | . . . Propulsion 4 | 2 1 1 Treads . | . . . Leg . | . . . Wheel 4 | 2 1 1 Hover . | . . . Flight . | . . . Utility 9 | 2 7 . Device 4 | 1 3 . Storage 3 | 1 2 . Processor 1 | . 1 . Hackware . | . . . Protection 1 | . 1 . Artifact . | . . . Weapon 6 | 2 3 1 Energy Gun 2 | . 1 1 Energy Cannon . | . . . Ballistic Gun 3 | 2 1 . Ballistic Cannon . | . . . Launcher . | . . . Special Weapon . | . . . Impact Weapon . | . . . Slashing Weapon . | . . . Piercing Weapon . | . . . Special Melee Weapon 1 | . 1 . Unidentified Prototypes . | . . . Parts Lost 5 | . 3 2 Power 1 | . 1 . Propulsion 1 | . . 1 Utility 1 | . 1 . Weapon 2 | . 1 1 Highest Loss Streak 2 | . 2 1 To Critical Strikes . | . . . Average Backups 9 | 3 9 14 Power 1 | . 1 2 Propulsion 2 | 1 2 2 Utility 2 | . 2 5 Weapon 3 | . 3 4 Tool/Special . | . . . Unused Backups 18 | . 5 13 Power 2 | . 1 1 Propulsion 3 | . 1 2 Utility 6 | . 1 5 Weapon 7 | . 2 5 Tool/Special . | . . . Average Slot Usage (%) 99 | . 99 100 Engine 14 | . 14 14 Wheel 28 | . 28 28 Device 7 | . 6 14 Storage 14 | . 14 14 Processor 2 | . 2 . Protection 3 | . 4 . Energy Gun 1 | . . 14 Ballistic Gun 25 | . 26 14 Peak Build Rating 10 | 7 10 10 Average Rating 8 | 5 8 9 On Entrance 5 | . 7 10 Naked Turns . | . . . Heaviest Build 28 | 14 28 28 Greatest Support 26 | 20 20 26 Greatest Overweight (x) 1 | 1 1 1 Average Overweight (x) . | . . . Largest Inventory Capacity 15 | 8 15 15 Average Capacity 10 | 7 10 15 Most Carried 15 | 6 15 15 Average Carried 10 | 3 9 14 Final Capacity 15 | 8 15 15 Final Carried 15 | 6 15 15 Class Distribution -------------------- 87% | Mutant 12% | Scavenger-Mutant Dominant Class ---------------- Mutant | -10/Materials Scavenger-Mutant | -10/Mines Resources | -11 -10 -10 ----------- Run | Yrd Mat Min Matter Collected 910 | 298 546 66 Remotely . | . . . Salvage Created 1153 | 115 794 244 Parts 94 | 13 58 23 Haulers Intercepted 2 | . 2 . Recyclers Shooed 1 | . 1 . Parts Field Recycled . | . . . Retrieved Matter . | . . . Parts Self-Destructed . | . . . Prevented . | . . . Kills | -11 -10 -10 ------- Run | Yrd Mat Min Combat Hostiles Destroyed 19 | . 11 8 Guns 19 | . 11 8 Classes Destroyed 7 | 2 4 1 Tunneler 3 | 3 . . Hauler 2 | . 2 . Recycler 4 | 1 2 1 Operator 1 | . 1 . Watcher 3 | . 3 . Swarmer 6 | . . 6 Grunt 13 | . 11 2 Best Kill Streak 5 | 4 3 5 Combat Bots Only 5 | . 2 5 Max Kills in Single Turn 1 | 1 1 1 Gunslinging . | . . . Exploded . | . . . Melee . | . . . Uniques/NPCs Destroyed . | . . . Combat | -11 -10 -10 -------- Run | Yrd Mat Min Hostile Shots Fired 101 | . 66 35 Missed 27 | . 18 9 Hits 74 | . 48 26 Projectile 74 | . 48 26 AOE 3 | . . 3 Critical Strikes 1 | . 1 . Actively Blocked 1 | . 1 . Damage Taken 982 | . 631 351 Core 256 | . 176 80 Absorbed by Shields . | . . . Redirected to Shielding 50 | . 50 . Regen/Repaired (Parts) 68 | . 68 . Core Remaining (%) 100 | 100 . . Volleys Fired 114 | 7 84 23 Largest 2 | 2 2 2 Hottest 60 | 40 40 60 Shots Fired 227 | 14 167 46 Gun 227 | 14 167 46 Cannon . | . . . Launcher . | . . . Special . | . . . Kinetic 204 | 14 167 23 Thermal 23 | . . 23 Explosive . | . . . Electromagnetic . | . . . Robot Hit Streak 18 | 8 12 18 Robot Miss Streak 3 | 1 3 3 Penetration Max . | . . . Secondary Targets 1 | . 1 . Max Gunslinging Chain 1 | . 1 . Shots Hit Robots 156 | 11 111 34 Core Hits 67 | 5 46 16 Critical Kills 1 | 1 . . Critical Parts Destroyed . | . . . Critical Strikes 1 | 1 . . Destroy 1 | 1 . . Melee Attacks 2 | . 2 . Impact . | . . . Slashing . | . . . Piercing . | . . . Sneak Attacks 2 | . 2 . Combat Hostiles . | . . . Follow-up Attacks . | . . . Damage Inflicted 1503 | 112 1064 327 Guns 1503 | 112 1064 327 Cannons . | . . . Explosions . | . . . Melee . | . . . Ramming . | . . . Kinetic 1304 | 112 1064 128 Thermal 199 | . . 199 Explosive . | . . . Electromagnetic . | . . . Impact . | . . . Slashing . | . . . Piercing . | . . . Highest Corruption . | . . . Average Corruption . | . . . Corruption Purged . | . . . Corruption Blocked . | . . . Overload Shots . | . . . Overflow Damage . | . . . Projectiles . | . . . Explosions . | . . . Melee . | . . . Knockbacks . | . . . Impact . | . . . Kinetic . | . . . Secondary . | . . . Self-Inflicted Damage . | . . . Shots . | . . . Rammed . | . . . Targets Rammed . | . . . Kicked . | . . . Crushed . | . . . Highest Temperature 30 | . 30 5 Average Temperature 8 | . 9 2 Received Heat Transfer 426 | . 351 75 Siege Activations . | . . . Martial Activations . | . . . Shielding Activations . | . . . Robots Disrupted . | . . . Combat Hostiles . | . . . Robots Corrupted . | . . . Combat Hostiles . | . . . Parts Fried . | . . . Impact Corruptions . | . . . Robots Melted . | . . . Combat Hostiles . | . . . Parts Melted 1 | . . 1 Heat Transferred 450 | . . 450 Parts Sabotaged . | . . . Parts Stolen . | . . . Parts Stripped . | . . . Power Chain Reactions . | . . . Alert | -11 -10 -10 ------- Run | Yrd Mat Min Maximum Alert Level . | . . . Low Security (%) 100 | 100 100 100 Level 1 . | . . . Level 2 . | . . . Level 3 . | . . . Level 4 . | . . . Level 5 . | . . . High Security . | . . . Max Security . | . . . Peak Influence 130 | 15 68 130 Initial . | . . . Average 22 | 2 16 84 Influence Increases 558 | 20 343 195 Destroy 0b10 Robot/C 380 | . 220 160 Destroy 0b10 Robot/NC 65 | 20 40 5 Destroy Leader 100 | . 70 30 Successful Hack 12 | . 12 . Destroy Structure 1 | . 1 . Influence Decreases 493 | 20 343 130 Time Decay 453 | 20 333 100 Lost Part 30 | . 10 20 Lost Ally 10 | . . 10 Squads Dispatched 2 | . 2 . Investigation . | . . . Extermination . | . . . Reinforcement 2 | . 2 . Assault . | . . . Garrison . | . . . Intercept . | . . . Searches Triggered . | . . . Construction Impeded . | . . . Haulers Reinforced . | . . . Active Scanning Responses . | . . . Cargo Convoy Interrupts . | . . . Stealth | -11 -10 -10 --------- Run | Yrd Mat Min Distress Signals . | . . . Communications Jammed . | . . . Distress Signals . | . . . Times Spotted 33 | . 20 13 Peak Tracking Total 3 | . 2 3 Tactical Retreats . | . . . Traps | -11 -10 -10 ------- Run | Yrd Mat Min Traps Triggered . | . . . Indirectly . | . . . Trap Hack Attempts 23 | . 23 . Triggered . | . . . Disarmed . | . . . Reprogrammed 3 | . 3 . Reused . | . . . Traps Extracted . | . . . Installed . | . . . Triggered . | . . . Machines | -11 -10 -10 ---------- Run | Yrd Mat Min Machines Disabled . | . . . Max in Single Turn . | . . . Machines Repaired . | . . . Machines Dismantled . | . . . Machines Sabotaged . | . . . Overloaded Fab Kills . | . . . Hacking | -11 -10 -10 --------- Run | Yrd Mat Min Machines Accessed 9 | . 9 . Terminals 6 | . 6 . Fabricators . | . . . Repair Stations 1 | . 1 . Recycling Units 2 | . 2 . Scanalyzers . | . . . Garrison Access . | . . . Total Hacks 32 | . 32 . Successful 12 | . 12 . Failed 19 | . 19 . Catastrophic 1 | . 1 . Database Lockouts 1 | . 1 . Manual 25 | . 25 . Terminals 23 | . 23 . Fabricators . | . . . Repair Stations 2 | . 2 . Recycling Units 7 | . 7 . Scanalyzers . | . . . Garrison Access . | . . . Terminal Hacks 2 | . 2 . Robot Analysis 1 | . 1 . Terminal Index 1 | . 1 . Fabricator Hacks . | . . . Repair Station Hacks 2 | . 2 . Scan Component 1 | . 1 . Repair 1 | . 1 . Recycling Unit Hacks 2 | . 2 . Report Inventory 2 | . 2 . Scanalyzer . | . . . Garrison Access Hacks . | . . . Unauthorized Hacks 6 | . 6 . Terminals 4 | . 4 . Assimilate 2 | . 2 . Botnet 1 | . 1 . Operators 1 | . 1 . Fabricators . | . . . Repair Stations . | . . . Recycling Units 2 | . 2 . Reject 2 | . 2 . Scanalyzers . | . . . Garrison Access . | . . . Data Cores Recovered . | . . . Used . | . . . Hacking Detections 9 | . 9 . Full Trace Events . | . . . Feedback Events . | . . . Feedback Blocked . | . . . Robot Schematics Acquired . | . . . Robots Built . | . . . Authchips . | . . . Time . | . . . Total Robot Build Rating . | . . . Part Schematics Acquired . | . . . Parts Built . | . . . Authchips . | . . . Time . | . . . Total Part Build Rating . | . . . Parts Repaired 1 | . 1 . Time 26 | . 26 . Parts Recycled . | . . . Recycled Matter . | . . . Retrieved Matter . | . . . Retrieved Components . | . . . Parts Scanalyzed . | . . . Part Schematics Acquired . | . . . Parts Damaged . | . . . Bothacking | -11 -10 -10 ------------ Run | Yrd Mat Min Used RIF Installer . | . . . Robots Hacked 1 | . 1 . Non-combat 1 | . 1 . Combat . | . . . Robot Hacks Applied 1 | . 1 . no_distress 1 | . 1 . Relay Couplers Released . | . . . Fabnet Peak Effective % . | . . . Robots Rewired . | . . . Allies Hacked . | . . . Hacks Repelled . | . . . Allies | -11 -10 -10 -------- Run | Yrd Mat Min Total Allies 1 | . 1 . Largest Group 1 | . 1 1 Highest-Rated Group 10 | . 10 10 Highest-Rated Ally 10 | . 10 10 Total Orders . | . . . Ally Attacks . | . . . Total Damage . | . . . Kills . | . . . Allies Corrupted . | . . . Allies Melted . | . . . Intel | -11 -10 -10 ------- Run | Yrd Mat Min Active Infowar (turns) 402 | 35 367 . Seismic 76 | 35 41 . T.N.C. 326 | . 326 . Robot Analysis Total 1 | . 1 . Derelict Logs Recovered . | . . . Drone Launches . | . . . Drone Recoveries . | . . . Exploration | -11 -10 -10 ------------- Run | Yrd Mat Min Turns Passed 2034 | 120 1708 206 Spaces Moved 1747 | 106 1536 105 Core 4 | 4 . . Treads . | . . . Legs . | . . . Wheels 1743 | 102 1536 105 Hover . | . . . Flight . | . . . Fastest Speed 50 | 50 80 90 Average Speed 85 | 79 85 94 Slowest Speed 115 | 100 95 115 Overloaded Moves . | . . . Propulsion Burnouts . | . . . Robots Hopped . | . . . Potential Cave-ins . | . . . Cave-ins Triggered . | . . . Exploration Rate (%) 40 | 4 100 17 Regions Visited 2 Branch Regions 1 Pre-discovered Areas . | . . . Known Exits Taken . | . . . Unknown Exits Taken 2 | 1 1 . Scrap Searched . | . . . Spaces Dug . | . . . Terrain Destroyed . | . . . Melee . | . . . Projectile . | . . . AOE . | . . . Terrain Rammed . | . . . Walls Destroyed . | . . . Machines Disabled . | . . . Actions | -11 -10 -10 --------- Run | Yrd Mat Min Total 2089 | 125 1789 175 Wait 128 | . 93 35 Move 1745 | 105 1535 105 Hop . | . . . Pick Up 30 | 6 20 4 Fast Attach 11 | 7 4 . Attach 4 | . 3 1 Detach 2 | . 2 . Swap 10 | . 8 2 Drop 20 | . 15 5 Fire 114 | 7 84 23 Melee 2 | . 2 . Ram . | . . . Kick . | . . . Crush . | . . . Escape Stasis . | . . . Rewire . | . . . Trap 23 | . 23 . Miscellaneous . | . . . Route ------- -11/Scrapyard -10/Materials (discovered 5 exits: [*Mat x3] / [*Min] / [*Sub]) -10/Mines (discovered 1 exit: [*Mat]) History --------- Turn | Location | Event 11 | -11/Scrapyard | Discovered new exit (range 15) 121 | -11/Scrapyard | Entered Materials 314 | -10/Materials | Build established: Mutant 378 | -10/Materials | Discovered new exit (range 16) 507 | -10/Materials | Discovered new exit (range 10) 550 | -10/Materials | Discovered new exit (range 15) 744 | -10/Materials | Discovered new exit (range 16) 863 | -10/Materials | Core integrity fell below 50% 1046 | -10/Materials | Central database locked down 1083 | -10/Materials | Repaired Lgt. Assault Rifle 1217 | -10/Materials | Discovered new exit (range 15) 1829 | -10/Materials | Entered Mines 1829 | -10/Mines | Accompanied by 1 ally 1859 | -10/Mines | Core integrity fell below 20% 1934 | -10/Mines | Discovered new exit (range 16) 2006 | -10/Mines | Assembled infested the area 2011 | -10/Mines | Assisted by a Guerilla fighting off Assembled 2035 | -10/Mines | Destroyed by D-53 Grenadier with Mini Grenade Launcher Last Messages --------------- 02015_ S-10 Pest knocked back. 02016_ K-01 Serf collects debris. 02019_ R-06 Scavenger collects Aluminum Leg. 02021_ S-10 Pest suffers critical hit (Destroy). 02021_ S-10 Pest destroyed. 02022_ R-06 Scavenger collects Tractor Beam. 02023_ S-10 Pest suffers critical hit (Destroy). 02023_ S-10 Pest destroyed. 02023_ K-01 Serf collects debris. 02024_ Dropped Lgt. Assault Rifle. 02024_ Acquired Lgt. Assault Rifle. 02028_ U-05 Engineer builds a Wall. 02030_ C-30 ARC bursts open, deploying its payload. 02030_ D-53 Grenadier unfolds itself. 02030_ 6D-OG7(h) destroyed. 02032_ Wheel destroyed. 02032_ Dropped Lgt. Cannon. 02032_ Acquired Bore Cannon. 02033_ Acquired 9 matter. Map ----- +----------------------------------------------------+ | ?????????????????????????????????????????????????? | | ?????????????????????????????????????????????????? | | ?????????????????????????????????????????????????? | | ?????????????????????????????????????????????????? | | ?????????????????????????????????????????????????? | | ?????????????????????????????????????????????????? | | ?????????????????????????????????????????????????? | | ?????????????????????????????????????????????????? | | ##???????????????????????????????????????????????? | | ##??????????????????????????????????????????????? | | ##?????????????????????????????????????????????? | | #?????????????????????????????????????????????? | | #????????????????????????????????????????????? | | ## #???????????????????????????????????????????? | | ??# ##???????????????????????????????????????????? | | ???##????????????????????????????????????????????? | | ####??????????????????????????##?????????????????? | | # ##???????????????????????? ##????????????????? | | ##??????????????????????? #????????????????? | | ###???????????????????? #????????????????? | | # ##??????????????????? #?????????????????? | | ## #????????????#####? #?????????????????? | | ?## ############## # ## #?????????????????? | | ??## ## = #??????????????????? | | ???## ######### ## * %=#???????????????????? | | ????# #???????# d d =!%@[% #???????????????????? | | ????# ##??????##### = %%#???????????????????? | | ????## #??????????# ] # #???????????????? | | ?????## ##??????????# # #??????????????? | | ??????###???????????#######? #??????????????? | | ????????????????????????????? ##??????????????? | | ?????????????????????????????? #???????????????? | | ?????????????????????????????? k#???????????????? | | ???????????????????????????????!% #??????????????? | | ???????????????????????????????? ??????????????? | | ????????????????????????????????? ?????????????? | | ????????????????????????????????? ????????????? | | ?????????????????????????????????? ??????????????? | | ?????????????????????????????????????????????????? | | ?????????????????????????????????????????????????? | | ?????????????????????????????????????????????????? | | ?????????????????????????????????????????????????? | | ?????????????????????????????????????????????????? | | ?????????????????????????????????????????????????? | | ?????????????????????????????????????????????????? | | ?????????????????????????????????????????????????? | | ?????????????????????????????????????????????????? | | ?????????????????????????????????????????????????? | | ?????????????????????????????????????????????????? | | ?????????????????????????????????????????????????? | +----------------------------------------------------+ Best States ------------- Heat Dissipation 39 Energy Generation 10 Energy Capacity 250 Matter Stores 300 Matter Capacity 300 Sight Range 16 Terrain Scan Density 10 Weapon Shielding 33 Evasion (%) 44 Item Schematics ----------------- None Robot Schematics ------------------ None Fabricated ------------ Nothing Repaired ---------- Lgt. Assault Rifle | 15% | -10/Materials Alien Tech Used ----------------- None Achievements -------------- None Challenges ------------ None Game ------ Seed ChainLatentCannon Manual? 0 Play Time 00:24:01 Cumulative 288.2 hours Start 2025.08.07 @ 19:44:14 End 2025.08.08 @ 01:39:37 Sessions 2 Manual Loads 0 Difficulty Rogue Special Mode None Game No. 255 Rogue 255 Adventurer 0 Explorer 0 Win Type - Total 1 Types 1/0/0/0/0/0/0/0/0/0 Lore% 65 Gallery% 63 Achievement% 50 Wizard Run 0 Options --------- Layout 2 ASCII 1 Keyboard 1 Movement Numpad Keybinds 0 Fullscreen 2 Font 32/TamsynBold Map View 50x44 Zoom Use 0% Tactical HUD 1 Map Filters NONE Filters NONE Steam 1 RUN: 0c410c4c-c811-46e4-bb5b-ef5341f6a505